bitfinex/quotes_SOLUSD_20220129
["timestamp","ask_amount","ask_price","bid_price","bid_amount"]
[1643447981319,0.25,95.804,95.757,16.22501513]
[1643447981718,0.25,95.804,95.758,15.97501513]
[1643447981917,0.25,95.804,95.759,2.90511552]
[1643447982118,0.25,95.804,95.759,15.97501513]
[1643447982318,0.25,95.804,95.76,2.90511552]
[1643447982517,0.25,95.804,95.76,15.97501513]
[1643447982916,0.25,95.804,95.761,15.97501513]
[1643447983317,0.25,95.804,95.762,13.06989961]
[1643447983718,0.25,95.804,95.754,13.06989961]
[1643447983920,6.25,95.804,95.755,2.90493234]
[1643447984620,6.25,95.804,95.756,13.06989961]
[1643447985223,9.20669142,95.804,95.756,13.06989961]
[1643447985424,9.20669142,95.804,95.722,25.72285684]
[1643447985622,24.5313,95.803,95.722,22.8347]
[1643447985823,0.25,95.802,95.722,22.8347]
[1643447986125,6.0,95.793,95.738,13.08458665]
[1643447986323,0.25,95.792,95.738,13.08458665]
[1643447986527,0.25,95.792,95.748,1.45158931]
[1643447986722,0.25,95.792,95.749,1.45158931]
[1643447988326,0.25,95.792,95.745,1.45158931]
[1643447989728,6.0,95.793,95.749,1.45158931]
[1643447989926,6.0,95.793,95.75,1.45158931]
[1643447990327,6.0,95.793,95.751,1.45158931]
[1643447991127,6.0,95.793,95.75,1.45158931]
[1643447991429,6.0,95.793,95.751,1.45158931]
[1643447991630,6.0,95.805,95.751,1.45158931]
[1643447991828,6.0,95.805,95.754,1.45158931]
[1643447992130,6.0,95.804,95.755,1.45158931]
[1643447992328,6.25,95.804,95.754,1.45158931]
[1643447992628,6.25,95.804,95.755,1.45158931]
[1643447992852,6.25,95.804,95.756,1.45158931]
[1643447993028,6.25,95.804,95.754,1.45158931]
[1643447993230,6.25,95.804,95.755,1.45158931]
[1643447993928,6.25,95.804,95.756,1.45158931]
[1643447994333,6.25,95.804,95.758,1.45158931]
[1643447995133,6.25,95.804,95.76,1.45158931]
[1643447996336,6.25,95.804,95.759,1.45158931]
[1643447998142,6.25,95.804,95.76,1.45158931]
[1643447998536,6.25,95.804,95.757,1.45158931]
[1643447998737,2.95669142,95.803,95.757,1.45158931]
[1643447998937,2.95669142,95.803,95.755,1.45158931]
[1643447999138,6.0,95.793,95.728,3.43897578]
[1643447999343,40.92016846,95.792,95.728,0.55081894]
[1643447999539,6.0,95.782,95.728,0.55081894]
[1643447999939,0.25,95.781,95.728,0.55081894]
[1643448000139,6.0,95.78,95.728,0.55081894]
[1643448000380,0.25,95.779,95.728,0.55081894]
[1643448000566,32.98008,95.77,95.708,4.7306401]
[1643448000766,0.25,95.769,95.708,4.7306401]
[1643448000973,6.0,95.76,95.708,4.7306401]
[1643448001366,0.25,95.759,95.708,4.7306401]
[1643448002166,2.95669142,95.758,95.708,4.7306401]
[1643448002367,0.25,95.757,95.708,4.7306401]
[1643448002565,38.92125249,95.747,95.708,4.7306401]
[1643448002767,0.25,95.746,95.708,4.7306401]
[1643448002966,6.0,95.737,95.708,4.7306401]
[1643448003167,0.25,95.746,95.708,4.7306401]
[1643448003367,0.25,95.736,95.708,4.7306401]
[1643448004367,6.0,95.737,95.714,0.1375176]
[1643448004768,0.25,95.736,95.714,0.1375176]
[1643448004969,6.25,95.736,95.714,0.1375176]
[1643448006874,6.0,95.736,95.714,0.1375176]
[1643448007079,38.92125249,95.747,95.714,0.1375176]
[1643448007276,30.754,95.79,95.714,0.1375176]
[1643448007473,47.6241,95.809,95.714,0.1375176]
[1643448007675,6.0,95.78,95.715,2.70333609]
[1643448007874,6.0,95.799,95.715,2.70333609]
[1643448008075,47.6241,95.809,95.725,6.0]
[1643448008275,17.72046057,95.828,95.725,6.0]
[1643448008276,35.75324416,95.808,95.726,0.25]
[1643448008476,35.75324416,95.808,95.726,2.95333609]
[1643448008677,35.75324416,95.808,95.726,0.25]
[1643448008877,35.75324416,95.808,95.716,4.59812978]
[1643448009076,2.95669142,95.807,95.716,4.59812978]
[1643448009476,6.0,95.797,95.716,4.59812978]
[1643448009877,0.25,95.796,95.716,4.59812978]
[1643448010084,6.25,95.796,95.717,0.25]
[1643448010879,6.0,95.796,95.717,0.25]
[1643448011079,6.0,95.796,95.716,4.59812978]
[1643448011280,6.0,95.796,95.717,0.25]
[1643448012283,0.25,95.795,95.716,4.34812978]
[1643448013279,6.0,95.796,95.716,4.34812978]
[1643448013480,6.0,95.796,95.726,6.0]
[1643448013880,6.0,95.796,95.727,6.0]
[1643448014081,6.0,95.798,95.728,6.0]
[1643448014281,6.0,95.798,95.729,0.25]
[1643448014684,0.25,95.797,95.729,0.25]
[1643448015081,0.25,95.797,95.718,23.7883]
[1643448015783,6.25,95.797,95.719,0.25]
[1643448015982,6.25,95.797,95.728,6.0]
[1643448016383,0.25,95.797,95.728,6.0]
[1643448016585,0.25,95.806,95.718,23.7883]
[1643448017688,6.0,95.797,95.719,0.25]
[1643448017885,0.25,95.796,95.719,0.25]
[1643448018285,6.0,95.798,95.728,6.0]
[1643448018485,35.75324416,95.808,95.73,6.0]
[1643448018686,35.75324416,95.808,95.732,103.4]
[1643448018886,35.75324416,95.808,95.733,0.25]
[1643448019109,35.75324416,95.808,95.742,6.0]
[1643448019286,35.75324416,95.808,95.743,0.25]
[1643448021489,35.75324416,95.808,95.733,0.25]
[1643448021890,0.25,95.807,95.732,0.25]
[1643448022089,6.0,95.798,95.732,0.25]
[1643448022288,0.25,95.797,95.732,0.25]
[1643448023592,0.25,95.807,95.732,0.25]
[1643448024591,0.25,95.807,95.732,103.65]
[1643448024992,6.0,95.798,95.732,113.11]
[1643448025194,6.0,95.798,95.732,9.71]
[1643448025392,0.25,95.797,95.732,9.71]
[1643448025595,0.25,95.797,95.733,103.4]
[1643448025792,0.25,95.797,95.734,0.25]
[1643448026392,0.25,95.807,95.734,0.25]
[1643448027619,30.746,95.84,95.734,0.25]
[1643448027822,15.08,95.85,95.744,103.4]
[1643448028020,15.663,95.86,95.754,6.0]
[1643448028021,6.0,95.84,95.754,6.0]
[1643448028229,6.0,95.84,95.754,109.4]
[1643448028422,6.0,95.848,95.755,6.25]
[1643448028623,40.69748413,95.847,95.755,6.25]
[1643448028820,0.25,95.846,95.764,6.0]
[1643448029021,6.0,95.837,95.766,6.0]
[1643448029421,0.25,95.836,95.767,24.9114]
[1643448031432,0.25,95.836,95.777,6.0]
[1643448031628,6.25,95.836,95.777,6.0]
[1643448032427,0.25,95.836,95.777,6.0]
[1643448034226,22.8621,95.859,95.777,6.0]
[1643448034427,22.8621,95.859,95.778,27.20885335]
[1643448034631,30.739,95.88,95.778,33.20885335]
[1643448034829,30.739,95.88,95.779,106.09795335]
[1643448035129,15.659,95.88,95.789,6.0]
[1643448035329,38.21416151,95.868,95.79,24.5109]
[1643448035929,2.95669142,95.891,95.791,103.4]
[1643448036129,17.5390335,95.905,95.802,62.07]
[1643448036329,24.5949,95.911,95.81,15.08]
[1643448036629,24.5949,95.911,95.82,6.0]
[1643448036828,45.08481852,95.91,95.83,15.08]
[1643448037031,45.08481852,95.91,95.84,6.0]
[1643448037229,45.08481852,95.91,95.842,103.4]
[1643448037728,45.08481852,95.91,95.852,6.0]
[1643448038529,45.08481852,95.91,95.841,24.2852]
[1643448039733,15.08,95.97,95.842,64.76795335]
[1643448039931,15.645,95.98,95.842,65.01795335]
[1643448040134,15.645,95.98,95.852,6.0]
[1643448040336,15.645,95.98,95.86,15.08]
[1643448040534,15.645,95.98,95.87,6.0]
[1643448040736,32.99193552,95.979,95.871,23.0366]
[1643448040933,32.99193552,95.979,95.871,23.2866]
[1643448041133,32.99193552,95.979,95.881,6.0]
[1643448041333,6.0,95.969,95.882,24.9]
[1643448041538,6.0,95.969,95.892,6.0]
[1643448041937,32.99193552,95.979,95.893,0.25]
[1643448042140,32.99193552,95.979,95.893,6.25]
[1643448042337,0.25,95.978,95.893,6.25]
[1643448043438,6.0,95.969,95.893,6.25]
[1643448043841,0.25,95.968,95.893,6.25]
[1643448044441,6.0,95.969,95.893,6.25]
[1643448044642,6.0,95.969,95.9,15.08]
[1643448044840,32.99193552,95.979,95.91,6.0]
[1643448045243,32.99193552,95.979,95.911,0.25]
[1643448045441,32.99193552,95.979,95.911,6.25]
[1643448045846,32.99193552,95.979,95.912,2.69715236]
[1643448046042,32.99193552,95.979,95.922,6.0]
[1643448046342,32.99193552,95.979,95.93,15.08]
[1643448046541,112.8,96.019,95.93,15.08]
[1643448046742,112.8,96.019,95.931,24.068]
[1643448047141,112.8,96.019,95.941,6.0]
[1643448047342,112.8,96.019,95.942,0.25]
[1643448047544,6.0,96.009,95.942,6.25]
[1643448047743,6.0,96.009,95.943,106.09715236]
[1643448047942,6.0,96.008,95.943,106.09715236]
[1643448048146,6.0,96.008,95.943,103.4]
[1643448048745,45.11992717,96.018,95.943,103.4]
[1643448049147,6.0,96.008,95.943,103.4]
[1643448049349,6.0,96.008,95.953,6.0]
[1643448049846,6.0,96.008,95.931,23.818]
[1643448050047,112.8,96.007,95.931,23.818]
[1643448050248,112.8,96.007,95.857,27.3457]
[1643448050249,0.25,96.006,95.88,188.55]
[1643448050548,0.25,96.006,95.831,15.4549]
[1643448050549,37.71323044,95.996,95.89,15.08]
[1643448050750,37.71323044,95.996,95.87,15.08]
[1643448050751,0.25,95.995,95.87,15.08]
[1643448050951,6.0,95.986,95.872,62.07]
[1643448051349,0.25,95.985,95.881,62.07]
[1643448051548,0.25,95.985,95.88,188.55]
[1643448051549,0.25,95.985,95.89,21.08]
[1643448051752,0.25,95.985,95.891,48.4605]
[1643448051949,0.25,95.985,95.901,6.0]
[1643448052149,37.71323044,95.996,95.91,15.08]
[1643448052349,37.71323044,95.996,95.911,24.9203]
[1643448052553,6.0,95.986,95.921,6.0]
[1643448052750,6.0,95.986,95.922,0.25]
[1643448053369,37.71323044,95.996,95.922,0.25]
[1643448053572,6.0,95.986,95.922,0.25]
[1643448053969,6.0,95.986,95.92,15.08]
[1643448053970,6.0,95.976,95.921,0.25]
[1643448054170,33.84884555,95.975,95.921,0.25]
[1643448054671,0.25,95.974,95.93,6.0]
[1643448054873,0.25,95.974,95.93,21.08]
[1643448055069,0.25,95.974,95.93,15.08]
[1643448055374,0.25,96.016,95.93,15.08]
[1643448055570,6.0,96.007,95.93,15.08]
[1643448055770,0.25,96.006,95.93,15.08]
[1643448055969,33.74168204,96.006,95.93,15.08]
[1643448056172,33.74168204,96.006,95.94,6.0]
[1643448056570,33.74168204,96.006,95.941,0.25]
[1643448056871,33.49168204,96.006,95.941,6.25]
[1643448057271,33.49168204,96.006,95.942,2.69715236]
[1643448057671,33.49168204,96.006,95.952,6.0]
[1643448058273,33.49168204,96.006,95.941,0.25]
[1643448058274,0.25,96.005,95.95,6.0]
[1643448058473,33.49168204,96.006,95.95,6.0]
[1643448058870,6.0,95.996,95.94,15.08]
[1643448059971,33.49168204,96.006,95.95,6.0]
[1643448060376,33.49168204,96.006,95.951,6.25]
[1643448060578,6.0,95.996,95.951,0.25]
[1643448061280,6.0,95.996,95.941,0.25]
[1643448061477,6.0,95.996,95.95,6.0]
[1643448061979,6.0,95.996,95.951,0.25]
[1643448062383,33.49168204,96.006,95.954,6.0]
[1643448062581,23.8572,96.036,95.961,6.0]
[1643448062781,0.25,96.005,95.963,103.4]
[1643448062981,0.25,96.005,95.973,6.0]
[1643448063179,0.25,96.005,95.974,103.4]
[1643448063380,0.25,96.005,95.973,6.0]
[1643448063681,0.25,96.005,95.973,103.4]
[1643448063884,112.8,96.039,95.974,2.94715236]
[1643448064082,15.625,96.09,95.974,2.94715236]
[1643448064083,112.8,96.089,95.984,6.0]
[1643448064284,24.3894,96.083,95.985,24.9358]
[1643448064582,112.8,96.089,95.996,62.07]
[1643448064781,41.09869035,96.088,96.0,15.08]
[1643448064981,41.09869035,96.088,96.01,6.0]
[1643448065384,41.09869035,96.088,96.011,6.25]
[1643448065583,41.09869035,96.088,96.011,0.25]
[1643448065784,6.0,96.078,96.021,6.0]
[1643448066184,6.0,96.078,96.022,0.25]
[1643448066387,41.09869035,96.088,96.022,0.25]
[1643448066587,41.09869035,96.088,96.025,6.0]
[1643448066786,41.09869035,96.088,96.026,0.25]
[1643448066986,41.09869035,96.088,96.033,6.0]
[1643448067386,41.09869035,96.088,96.027,2.69883556]
[1643448067591,6.0,96.078,96.022,12.6]
[1643448067988,0.25,96.077,96.023,0.25]
[1643448068390,0.25,96.087,96.023,0.25]
[1643448068791,6.0,96.078,96.023,0.25]
[1643448069196,0.25,96.077,96.023,0.25]
[1643448070189,0.25,96.077,96.022,12.6]
[1643448070190,0.25,96.087,96.022,12.6]
[1643448070789,0.25,96.087,96.023,103.4]
[1643448071190,0.25,96.087,96.022,12.6]
[1643448071796,0.25,96.087,96.023,103.65]
[1643448072090,0.25,96.087,96.023,0.25]
[1643448072491,0.25,96.087,96.032,6.0]
[1643448072793,0.25,96.087,96.033,0.25]
[1643448074391,0.25,96.087,96.033,103.65]
[1643448074590,0.25,96.087,96.033,0.25]
[1643448077992,0.25,96.087,96.03,6.0]
[1643448078192,0.25,96.087,96.031,0.25]
[1643448080494,0.25,96.087,96.031,6.25]
[1643448080695,0.25,96.087,96.031,29.5409]
[1643448080895,6.0,96.117,96.031,29.5409]
[1643448081095,24.8191,96.127,96.033,62.07]
[1643448081298,24.8191,96.127,96.036,103.4]
[1643448081499,41.93071567,96.116,96.046,6.0]
[1643448081696,41.93071567,96.116,96.047,165.47]
[1643448081899,41.93071567,96.116,96.05,6.0]
[1643448082097,41.93071567,96.116,96.057,6.0]
[1643448082396,41.93071567,96.116,96.058,0.25]
[1643448082797,23.9563,96.158,96.06,15.08]
[1643448082997,23.9563,96.158,96.07,6.0]
[1643448083496,23.9563,96.158,96.071,6.25]
[1643448083697,33.24780885,96.135,96.071,6.25]
[1643448084606,0.25,96.134,96.071,6.25]
[1643448085197,33.24780885,96.135,96.071,6.25]
[1643448085397,23.9563,96.158,96.071,6.25]
[1643448085599,6.0,96.148,96.072,6.0]
[1643448085797,6.0,96.148,96.073,0.25]
[1643448085997,6.0,96.148,96.071,6.25]
[1643448085998,6.0,96.148,96.08,6.0]
[1643448086399,36.14274826,96.145,96.081,0.25]
[1643448086626,36.14274826,96.145,96.082,103.4]
[1643448086802,36.14274826,96.145,96.083,0.25]
[1643448087001,0.25,96.144,96.083,0.25]
[1643448087203,6.0,96.148,96.091,103.4]
[1643448087403,6.0,96.148,96.09,15.08]
[1643448087404,6.0,96.148,96.092,0.25]
[1643448087606,23.3174,96.169,96.092,0.25]
[1643448087607,6.0,96.159,96.092,0.25]
[1643448087801,6.0,96.159,96.1,6.0]
[1643448088002,6.0,96.159,96.092,0.25]
[1643448088203,42.91071801,96.149,96.092,0.25]
[1643448088902,6.0,96.159,96.092,0.25]
[1643448089103,0.25,96.158,96.092,103.4]
[1643448089903,44.26418518,96.145,96.092,103.4]
[1643448090104,0.25,96.158,96.092,103.4]
[1643448091105,39.46696903,96.149,96.092,103.4]
[1643448091304,0.25,96.148,96.093,0.25]
[1643448091504,6.25,96.148,96.093,0.25]
[1643448091706,6.25,96.148,96.092,103.4]
[1643448092306,0.25,96.148,96.092,103.4]
[1643448092505,41.70561761,96.153,96.092,103.4]
[1643448092707,6.0,96.143,96.092,103.4]
[1643448092906,6.0,96.143,96.093,0.25]
[1643448093305,22.7968,96.207,96.102,6.0]
[1643448093306,0.0015584,96.129,96.102,6.0]
[1643448093606,22.7968,96.207,96.102,6.0]
[1643448093607,6.0,96.197,96.11,15.08]
[1643448093804,22.7968,96.207,96.111,151.7872]
[1643448094006,22.7968,96.207,96.121,6.0]
[1643448094304,22.7968,96.207,96.122,103.65]
[1643448094305,36.89434884,96.206,96.122,103.65]
[1643448094505,36.89434884,96.206,96.13,6.0]
[1643448094704,36.89434884,96.206,96.132,6.0]
[1643448094908,36.89434884,96.206,96.133,0.25]
[1643448095104,36.89434884,96.206,96.133,6.25]
[1643448095305,6.0,96.196,96.133,6.25]
[1643448095504,6.0,96.196,96.134,6.0]
[1643448095704,6.0,96.196,96.133,6.0]
[1643448095905,6.0,96.196,96.123,23.5796]
[1643448096106,6.0,96.196,96.124,0.25]
[1643448096506,6.0,96.196,96.134,103.4]
[1643448097008,0.25,96.195,96.144,6.0]
[1643448097208,6.0,96.196,96.144,6.0]
[1643448097410,6.0,96.236,96.145,0.25]
[1643448097609,6.0,96.235,96.15,6.0]
[1643448097807,51.89715161,96.235,96.151,128.5308]
[1643448098006,51.89715161,96.235,96.161,6.0]
[1643448098408,51.89715161,96.235,96.162,0.25]
[1643448098907,0.25,96.234,96.162,0.25]
[1643448099709,0.25,96.234,96.161,6.0]
[1643448100410,0.25,96.234,96.162,0.25]
[1643448100912,51.89715161,96.235,96.162,103.65]
[1643448101110,51.89715161,96.235,96.162,0.25]
[1643448102335,6.0,96.235,96.162,127.6665]
[1643448102537,2.78601195,96.28,96.172,6.0]
[1643448102735,75.971,96.29,96.172,6.0]
[1643448102937,46.8319,96.286,96.18,15.08]
[1643448103135,49.78859142,96.286,96.18,15.08]
[1643448103334,43.15460332,96.285,96.181,0.25]
[1643448103534,2.80635327,96.284,96.181,0.25]
[1643448103736,6.01304469,96.284,96.181,0.25]
[1643448104038,6.0,96.274,96.181,0.25]
[1643448104236,0.25,96.273,96.181,0.25]
[1643448104438,6.25,96.273,96.181,0.25]
[1643448104837,2.95669142,96.283,96.19,6.0]
[1643448105040,43.15460332,96.285,96.191,6.0]
[1643448105238,43.15460332,96.285,96.191,6.25]
[1643448105639,43.15460332,96.285,96.182,22.741]
[1643448105843,2.95669142,96.284,96.183,0.25]
[1643448106243,6.0,96.274,96.183,0.25]
[1643448106741,3.20669142,96.273,96.183,0.25]
[1643448107141,6.0,96.263,96.183,0.25]
[1643448107342,39.90431911,96.262,96.18,15.08]
[1643448107547,48.86101053,96.262,96.18,15.08]
[1643448107945,2.95669142,96.261,96.15,15.08]
[1643448108142,26.97129142,96.261,96.15,15.08]
[1643448108343,6.0,96.251,96.15,15.08]
[1643448108642,6.0,96.251,96.151,24.5679]
[1643448108842,0.25,96.25,96.151,24.5679]
[1643448109045,15.6,96.25,96.151,24.5679]
[1643448109843,5.75,96.251,96.152,62.07]
[1643448110048,5.75,96.251,96.162,109.4]
[1643448110245,0.25,96.25,96.17,15.08]
[1643448110445,5.75,96.251,96.172,6.0]
[1643448110646,5.75,96.251,96.17,15.08]
[1643448111048,5.75,96.251,96.18,6.0]
[1643448111247,5.75,96.251,96.18,21.08]
[1643448111448,5.75,96.251,96.18,83.15]
[1643448111847,0.25,96.25,96.182,62.07]
[1643448112048,0.25,96.25,96.192,6.0]
[1643448112250,6.0,96.241,96.193,0.25]
[1643448112449,6.0,96.252,96.193,0.25]
[1643448112650,6.0,96.252,96.2,6.0]
[1643448112851,6.0,96.275,96.193,0.25]
[1643448113250,36.50889912,96.274,96.193,0.25]
[1643448113649,6.0,96.264,96.193,0.25]
[1643448114049,6.0,96.264,96.191,0.25]
[1643448114650,6.0,96.264,96.191,103.65]
[1643448114850,0.25,96.263,96.191,103.65]
[1643448115852,6.0,96.264,96.202,103.4]
[1643448116052,6.0,96.264,96.201,6.0]
[1643448116255,0.25,96.263,96.202,6.25]
[1643448116452,0.25,96.263,96.21,6.0]
[1643448116655,0.25,96.263,96.202,0.25]
[1643448116952,0.25,96.263,96.21,6.0]
[1643448117354,0.25,96.263,96.211,0.25]
[1643448117553,0.25,96.263,96.2,15.08]
[1643448117757,0.25,96.263,96.201,0.25]
[1643448118455,6.0,96.264,96.21,15.08]
[1643448118656,0.25,96.263,96.21,15.08]
[1643448118856,0.25,96.263,96.211,0.25]
[1643448120559,6.0,96.264,96.211,0.25]
[1643448120761,0.25,96.263,96.211,0.25]
[1643448121160,6.0,96.264,96.211,0.25]
[1643448122361,0.25,96.263,96.21,15.08]
[1643448123562,6.0,96.264,96.21,15.08]
[1643448123761,6.0,96.264,96.211,0.25]
[1643448125565,6.0,96.264,96.21,15.08]
[1643448126669,0.25,96.263,96.21,15.08]
[1643448126869,0.25,96.263,96.211,0.25]
[1643448127069,6.0,96.264,96.211,0.25]
[1643448127269,0.25,96.263,96.211,0.25]
[1643448127468,0.25,96.263,96.21,15.08]
[1643448127669,6.0,96.262,96.21,15.08]
[1643448127891,0.25,96.261,96.21,15.08]
[1643448128094,6.0,96.26,96.21,15.08]
[1643448128291,36.91924451,96.259,96.21,15.08]
[1643448128493,6.0,96.249,96.21,15.08]
[1643448128693,36.91924451,96.259,96.21,15.08]
[1643448129495,36.91924451,96.259,96.211,0.25]
[1643448129999,36.91924451,96.259,96.21,15.08]
[1643448130598,0.25,96.259,96.21,15.08]
[1643448130798,0.25,96.271,96.211,23.0387]
[1643448131196,1.4060367,96.275,96.211,23.0387]
[1643448131398,6.0,96.271,96.212,0.25]
[1643448131597,42.27175527,96.27,96.212,0.25]
[1643448131998,6.0,96.26,96.212,0.25]
[1643448132397,6.0,96.26,96.212,103.65]
[1643448132596,6.0,96.275,96.212,103.65]
[1643448133097,6.0,96.274,96.212,103.65]
[1643448133996,6.0,96.276,96.222,6.0]
[1643448134297,6.0,96.276,96.223,0.25]
[1643448134497,6.0,96.278,96.223,0.25]
[1643448134896,6.0,96.276,96.223,0.25]
[1643448135097,6.0,96.276,96.22,15.08]
[1643448135300,0.25,96.275,96.22,15.08]
[1643448135496,6.0,96.274,96.22,15.08]
[1643448135902,6.0,96.266,96.22,15.08]
[1643448136099,6.0,96.26,96.22,15.08]
[1643448136299,35.56979296,96.27,96.22,15.08]
[1643448137905,2.82724439,96.302,96.221,103.4]
[1643448137906,1.4060367,96.281,96.221,103.4]
[1643448138105,0.04123244,96.302,96.231,109.4]
[1643448138305,0.04123244,96.302,96.24,15.08]
[1643448138704,0.04123244,96.302,96.241,0.25]
[1643448139506,0.04123244,96.302,96.25,6.0]
[1643448139706,0.04123244,96.302,96.26,15.08]
[1643448140004,0.04123244,96.302,96.261,0.25]
[1643448141308,0.04123244,96.302,96.261,103.65]
[1643448143511,0.04123244,96.302,96.271,6.0]
[1643448143710,0.04123244,96.302,96.272,103.4]
[1643448143908,0.04123244,96.302,96.272,103.65]
[1643448145307,0.04123244,96.302,96.272,103.4]
[1643448145908,6.0,96.297,96.27,15.08]
[1643448146109,37.66454107,96.296,96.27,15.08]
[1643448146311,37.33218087,96.296,96.24,15.08]
[1643448146511,5.5,96.286,96.24,15.08]
[1643448146909,0.25,96.285,96.24,15.08]
[1643448148411,0.25,96.295,96.24,15.08]
[1643448148611,6.0,96.286,96.24,15.08]
[1643448148815,0.25,96.285,96.24,15.08]
[1643448151011,0.04123244,96.302,96.241,103.65]
[1643448151214,0.04123244,96.302,96.241,129.7771271]
[1643448151415,0.04123244,96.302,96.242,2.6756271]
[1643448151813,0.04123244,96.302,96.243,0.25]
[1643448152018,0.04123244,96.302,96.253,103.4]
[1643448152218,0.04123244,96.302,96.26,77.15]
[1643448152617,0.04123244,96.302,96.261,0.25]
[1643448152817,0.04123244,96.302,96.261,106.3256271]
[1643448153018,0.04123244,96.302,96.262,2.6756271]
[1643448153319,0.04123244,96.302,96.263,0.25]
[1643448153717,0.04123244,96.302,96.264,2.6756271]
[1643448154144,0.04123244,96.302,96.265,0.25]
[1643448154344,0.04123244,96.302,96.27,15.08]
[1643448154745,0.04123244,96.302,96.271,0.25]
[1643448155748,0.11021026,96.307,96.272,61.0]
[1643448155947,0.11021026,96.307,96.271,0.25]
[1643448159254,0.11021026,96.307,96.253,2.6756271]
[1643448159553,0.11021026,96.307,96.21,15.08]
[1643448160153,0.11021026,96.307,96.23,15.08]
[1643448161556,36.35680461,96.306,96.23,15.08]
[1643448161756,0.25,96.305,96.232,0.25]
[1643448161958,6.0,96.296,96.23,15.08]
[1643448162354,0.25,96.295,96.23,15.08]
[1643448163755,0.25,96.295,96.232,0.25]
[1643448166657,0.25,96.295,96.23,15.08]
[1643448166859,0.25,96.295,96.222,22.8786]
[1643448167056,0.25,96.295,96.223,0.25]
[1643448167956,0.25,96.295,96.22,15.08]
[1643448169361,0.25,96.295,96.221,0.25]
[1643448170960,5.25,96.296,96.221,0.25]
[1643448171560,6.0,96.295,96.221,0.25]
[1643448171963,6.0,96.286,96.221,128.0867]
[1643448172161,6.0,96.295,96.221,128.0867]
[1643448173465,6.0,96.295,96.222,2.67575269]
[1643448173762,6.0,96.296,96.231,6.0]
[1643448173963,6.0,96.296,96.24,15.08]
[1643448174164,0.58108374,96.307,96.24,15.08]
[1643448174368,38.0736107,96.306,96.241,0.25]
[1643448174762,6.0,96.296,96.241,0.25]
[1643448174965,38.0736107,96.306,96.241,0.25]
[1643448175162,6.0,96.296,96.241,0.25]
[1643448175365,38.0736107,96.306,96.231,0.25]
[1643448175564,0.25,96.295,96.231,0.25]
[1643448177567,0.25,96.295,96.24,6.0]
[1643448177766,38.0736107,96.306,96.241,0.25]
[1643448178169,6.0,96.296,96.241,0.25]
[1643448178572,38.0736107,96.306,96.24,6.0]
[1643448178773,6.0,96.296,96.24,6.0]